[Event "4th Batumi Cup 2018"]
[Site "Batumi"]
[Date "2018.07.08"]
[Round "7"]
[White "Duzhakov, Ilya"]
[Black "Sattarov, Bobir"]
[Result "1-0"]
[ECO "B38"]
[WhiteElo "2448"]
[BlackElo "2328"]
[Annotator "ChessBase"]
[PlyCount "87"]
[EventDate "2018.07.03"]
[EventType "swiss"]
[EventCountry "GEO"]
[SourceTitle "playchess.com"]
[Source "ChessBase"]
[SourceQuality "1"]
[TimeControl "40/5400+30:1800+30"]

1. d4 {[%emt 0:01:58]} Nf6 {[%emt 0:00:00]} 2. c4 {[%emt 0:00:19]} g6 {[%emt 0:00:00]} 3. Nc3 {[%emt 0:00:09]} Bg7 {[%emt 0:00:01]} 4. e4 {[%emt 0:00:23]} d6 {[%emt 0:00:06]} 5. f3 {[%emt 0:00:11]} O-O {[%emt 0:01:13]} 6. Be3 {[%emt 0:00:04]} c5 {[%emt 0:00:24]} 7. Nge2 {[%emt 0:00:22]} cxd4 {[%emt 0:00:51]} 8. Nxd4 {[%emt 0:00:10]} Nc6 {[%emt 0:00:07]} 9. Be2 {[%emt 0:01:03]} Bd7 {[%emt 0:00:07]} 10. Nc2 {[%emt 0:00:44]} Qa5 {[%emt 0:00:06]} 11. Qd2 {[%emt 0:03:27]} Rfc8 {[%emt 0:00:09]} 12. O-O {[%emt 0:03:13]} Ne5 {[%emt 0:12:56]} 13. Na3 {[%emt 0:02:30]} Be6 {[%emt 0:02:31]} 14. Nd5 {[%emt 0:02:12]} Qxd2 {[%emt 0:00:11]} 15. Bxd2 {[%emt 0:00:25]} Nxd5 {[%emt 0:00:33]} 16. cxd5 {[%emt 0:02:13]} Bd7 {[%emt 0:00:13]} 17. Bc3 {[%emt 0:12:59]} Rab8 {[%emt 0:09:16]} 18. f4 {[%emt 0:02:55]} Ng4 {[%emt 0:07:11]} 19. Bxg7 {[%emt 0:01:13]} Kxg7 {[%emt 0:00:05]} 20. Rfc1 {[%emt 0:09:03]} h5 {[%emt 0:11:29]} 21. h3 {[%emt 0:02:15]} Nf6 {[%emt 0:01:05]} 22. Bf3 {[%emt 0:01:33]} h4 {[%emt 0:00:52]} 23. Kf2 {[%emt 0:09:12]} g5 {[%emt 0:13:47]} 24. e5 {[%emt 0:06:13]} Ne8 {[%emt 0:00:09]} 25. exd6 {[%emt 0:07:06]} Nxd6 {[%emt 0:00:52]} 26. fxg5 {[%emt 0:02:17]} Kg6 {[%emt 0:22:24]} 27. Re1 {[%emt 0:04:24]} Nf5 {[%emt 0:00:23]} 28. Be4 {[%emt 0:08:45]} Rc7 {[%emt 0:00:54]} 29. Bd3 {[%emt 0:09:26]} Kxg5 {[%emt 0:12:27]} 30. Re5 {[%emt 0:00:22]} f6 {[%emt 0:02:08]} 31. Re4 {[%emt 0:00:18]} Rc5 {[%emt 0:00:29]} 32. Rg4+ {[%emt 0:00:30]} Kh5 {[%emt 0:00:11]} 33. Be2 {[%emt 0:01:33]} Kh6 {[%emt 0:00:11]} 34. Rd1 {[%emt 0:01:55]} Rbc8 {[%emt 0:01:17]} 35. Nc4 {[%emt 0:03:37]} b5 {[%emt 0:00:54]} 36. Ne3 {[%emt 0:00:54]} Nxe3 {[%emt 0:01:36]} 37. Rxh4+ {[%emt 0:00:09]} Kg5 {[%emt 0:00:32]} 38. Rh5+ {[%emt 0:00:21]} Kg6 {[%emt 0:00:01]} 39. Kxe3 {[%emt 0:00:03]} Rc2 {[%emt 0:01:16]} 40. g4 {[%emt 0:00:00]} Rxb2 {[%emt 0:00:00]} 41. Bd3+ {[%emt 0:04:25]} f5 {[%emt 0:04:30]} 42. Rxf5 {[%emt 0:00:37]} Kg7 {[%emt 0:00:51]} 43. Rg5+ {[%emt 0:00:48]} Kf6 {[%emt 0:00:07]} 44. h4 {[%emt 0:00:43]} 1-0

[Event "4th Batumi Cup 2018"]
[Site "Batumi"]
[Date "2018.07.08"]
[Round "7"]
[White "Sibashvili, Giorgi"]
[Black "Sanchez, Louis"]
[Result "1/2-1/2"]
[ECO "D35"]
[WhiteElo "2408"]
[BlackElo "2290"]
[Annotator "ChessBase"]
[PlyCount "221"]
[EventDate "2018.07.03"]
[EventType "swiss"]
[EventCountry "GEO"]
[SourceTitle "playchess.com"]
[Source "ChessBase"]
[SourceQuality "1"]
[TimeControl "40/5400+30:1800+30"]

1. c4 {[%emt 0:06:08]} e6 {[%emt 0:00:44]} 2. d4 {[%emt 0:02:36]} d5 {[%emt 0:01:05]} 3. Nc3 {[%emt 0:00:30]} Nf6 {[%emt 0:00:44]} 4. cxd5 {[%emt 0:01:16]} exd5 {[%emt 0:01:08]} 5. Bg5 {[%emt 0:00:05]} c6 {[%emt 0:01:10]} 6. e3 {[%emt 0:00:10]} Bf5 {[%emt 0:04:07]} 7. Qf3 {[%emt 0:00:19]} Bg6 {[%emt 0:00:23]} 8. Bxf6 {[%emt 0:00:08]} Qxf6 {[%emt 0:00:18]} 9. Qxf6 {[%emt 0:00:07]} gxf6 {[%emt 0:00:07]} 10. Nf3 {[%emt 0:01:45]} Nd7 {[%emt 0:01:02]} 11. O-O-O {[%emt 0:09:00]} Nb6 {[%emt 0:01:59]} 12. Bd3 {[%emt 0:01:11]} Nc8 {[%emt 0:07:11]} 13. Ne2 {[%emt 0:05:56]} Nd6 {[%emt 0:09:15]} 14. Ng3 {[%emt 0:00:42]} Rg8 {[%emt 0:05:39]} 15. Rhg1 {[%emt 0:03:43]} Kd7 {[%emt 0:12:47]} 16. Nh4 {[%emt 0:01:12]} Ke6 {[%emt 0:03:41]} 17. Kc2 {[%emt 0:07:48]} Be7 {[%emt 0:04:43]} 18. Nxg6 {[%emt 0:14:29]} hxg6 {[%emt 0:01:53]} 19. e4 {[%emt 0:00:18]} dxe4 {[%emt 0:03:29]} 20. Nxe4 {[%emt 0:00:35]} Nxe4 {[%emt 0:02:31]} 21. Rge1 {[%emt 0:00:58]} Kd6 {[%emt 0:05:17]} 22. Rxe4 {[%emt 0:01:25]} f5 {[%emt 0:01:20]} 23. Re2 {[%emt 0:00:53]} Rh8 {[%emt 0:06:30]} 24. h3 {[%emt 0:00:57]} Bf6 {[%emt 0:02:04]} 25. Bc4 {[%emt 0:00:49]} Raf8 {[%emt 0:00:31]} 26. Rde1 {[%emt 0:03:39]} b5 {[%emt 0:10:36]} 27. Bb3 {[%emt 0:00:37]} a5 {[%emt 0:02:19]} 28. a3 {[%emt 0:01:58]} a4 {[%emt 0:00:55]} 29. Ba2 {[%emt 0:00:36]} Bxd4 {[%emt 0:06:01]} 30. Re7 {[%emt 0:00:47]} Bxf2 {[%emt 0:00:22]} 31. R1e2 {[%emt 0:00:26]} f4 {[%emt 0:00:35]} 32. R2e4 {[%emt 0:02:42]} g5 {[%emt 0:01:25]} 33. Bxf7 {[%emt 0:01:02]} Rh6 {[%emt 0:01:06]} 34. Be8 {[%emt 0:12:56]} Be3 {[%emt 0:00:28]} 35. Rd7+ {[%emt 0:03:25]} Kc5 {[%emt 0:00:14]} 36. Re5+ {[%emt 0:00:29]} Kb6 {[%emt 0:00:34]} 37. Rde7 {[%emt 0:00:12]} g4 {[%emt 0:02:14]} 38. hxg4 {[%emt 0:02:15]} Rh2 {[%emt 0:00:10]} 39. R7e6 {[%emt 0:10:10]} Rxg2+ {[%emt 0:00:08]} 40. Kd3 {[%emt 0:00:00]} Rxe8 {[%emt 0:00:00]} 41. Rxe8 {[%emt 0:00:29]} Rxg4 {[%emt 0:02:06]} 42. R5e6 {[%emt 0:07:36]} Rg5 {[%emt 0:05:52]} 43. Rxe3 {[%emt 0:07:37]} fxe3 {[%emt 0:00:54]} 44. Rxe3 {[%emt 0:00:08]} Rc5 {[%emt 0:09:45]} 45. Re1 {[%emt 0:00:13]} Rc4 {[%emt 0:00:11]} 46. Rh1 {[%emt 0:00:11]} Rg4 {[%emt 0:00:53]} 47. Rh5 {[%emt 0:00:58]} Rg3+ {[%emt 0:00:21]} 48. Kc2 {[%emt 0:00:07]} Re3 {[%emt 0:00:57]} 49. Rg5 {[%emt 0:00:53]} Kc7 {[%emt 0:01:35]} 50. Rg6 {[%emt 0:00:11]} Re5 {[%emt 0:00:19]} 51. Rh6 {[%emt 0:00:32]} Kb6 {[%emt 0:00:08]} 52. Rg6 {[%emt 0:01:44]} Kc5 {[%emt 0:00:09]} 53. Rg4 {[%emt 0:00:32]} Kd5 {[%emt 0:00:12]} 54. Kd3 {[%emt 0:01:08]} Rh5 {[%emt 0:01:35]} 55. Rd4+ {[%emt 0:00:56]} Kc5 {[%emt 0:00:14]} 56. Rg4 {[%emt 0:00:19]} Rh3+ {[%emt 0:00:48]} 57. Kc2 {[%emt 0:00:06]} Re3 {[%emt 0:00:23]} 58. Kd2 {[%emt 0:00:33]} Re5 {[%emt 0:01:40]} 59. Kc3 {[%emt 0:01:57]} Rf5 {[%emt 0:00:48]} 60. Rh4 {[%emt 0:00:29]} Kd6 {[%emt 0:06:32]} 61. Rd4+ {[%emt 0:02:00]} Ke6 {[%emt 0:00:27]} 62. Rh4 {[%emt 0:04:49]} c5 {[%emt 0:00:45]} 63. Rh8 {[%emt 0:02:48]} Rf3+ {[%emt 0:02:22]} 64. Kc2 {[%emt 0:00:19]} Kd7 {[%emt 0:03:45]} 65. Rh7+ {[%emt 0:00:47]} Kc6 {[%emt 0:00:08]} 66. Rh6+ {[%emt 0:00:14]} Kb7 {[%emt 0:00:16]} 67. Rh7+ {[%emt 0:00:31]} Kb6 {[%emt 0:00:10]} 68. Rh6+ {[%emt 0:00:23]} Kb7 {[%emt 0:02:03]} 69. Rg6 {[%emt 0:03:17]} Rf2+ {[%emt 0:00:18]} 70. Kc3 {[%emt 0:00:14]} Rf3+ {[%emt 0:00:04]} 71. Kc2 {[%emt 0:00:04]} Rf7 {[%emt 0:00:10]} 72. Kc3 {[%emt 0:00:29]} Re7 {[%emt 0:00:14]} 73. Rh6 {[%emt 0:00:19]} Rf7 {[%emt 0:00:24]} 74. Rg6 {[%emt 0:00:05]} Rc7 {[%emt 0:00:31]} 75. Rh6 {[%emt 0:00:52]} Rc6 {[%emt 0:00:39]} 76. Rh7+ {[%emt 0:00:40]} Kb6 {[%emt 0:00:04]} 77. Rh8 {[%emt 0:00:30]} Re6 {[%emt 0:00:18]} 78. Rb8+ {[%emt 0:00:54]} Kc6 {[%emt 0:00:06]} 79. Rc8+ {[%emt 0:00:20]} Kd5 {[%emt 0:00:16]} 80. Rd8+ {[%emt 0:00:19]} Kc6 {[%emt 0:01:25]} 81. Rc8+ {[%emt 0:00:53]} Kb6 {[%emt 0:00:08]} 82. Rb8+ {[%emt 0:00:15]} Ka6 {[%emt 0:00:47]} 83. Rc8 {[%emt 0:00:10]} Re3+ {[%emt 0:00:41]} 84. Kd2 {[%emt 0:02:20]} Re5 {[%emt 0:00:39]} 85. Kc3 {[%emt 0:01:13]} Rg5 {[%emt 0:00:24]} 86. Rb8 {[%emt 0:01:06]} Rg3+ {[%emt 0:00:31]} 87. Kc2 {[%emt 0:00:04]} Rg4 {[%emt 0:00:04]} 88. Kc3 {[%emt 0:01:27]} Rh4 {[%emt 0:00:07]} 89. Ra8+ {[%emt 0:02:16]} Kb7 {[%emt 0:00:10]} 90. Ra5 {[%emt 0:02:09]} Kc6 {[%emt 0:00:20]} 91. Ra8 {[%emt 0:00:35]} Rh3+ {[%emt 0:00:09]} 92. Kc2 {[%emt 0:00:06]} Kd5 {[%emt 0:00:22]} 93. Kb1 {[%emt 0:01:34]} Kd4 {[%emt 0:02:05]} 94. Ka2 {[%emt 0:00:28]} Kc4 {[%emt 0:03:12]} 95. Ra7 {[%emt 0:00:52]} b4 {[%emt 0:00:00]} 96. axb4 {[%emt 0:00:21]} cxb4 {[%emt 0:00:24]} 97. Rc7+ {[%emt 0:01:04]} Kb5 {[%emt 0:00:28]} 98. Rb7+ {[%emt 0:00:13]} Kc5 {[%emt 0:00:09]} 99. Ra7 {[%emt 0:00:21]} Rh1 {[%emt 0:00:21]} 100. Rc7+ {[%emt 0:01:03]} Kb6 {[%emt 0:01:40]} 101. Rc8 {[%emt 0:00:15]} Rh2 {[%emt 0:00:09]} 102. Rb8+ {[%emt 0:00:48]} Kc5 {[%emt 0:00:05]} 103. Rc8+ {[%emt 0:00:14]} Kd5 {[%emt 0:00:21]} 104. Rd8+ {[%emt 0:00:29]} Kc4 {[%emt 0:00:14]} 105. Rc8+ {[%emt 0:00:23]} Kd3 {[%emt 0:00:06]} 106. Rd8+ {[%emt 0:00:44]} Kc2 {[%emt 0:01:12]} 107. Rc8+ {[%emt 0:00:31]} Kd1 {[%emt 0:00:08]} 108. Rc4 {[%emt 0:00:18]} a3 {[%emt 0:01:51]} 109. Rxb4 {[%emt 0:00:07]} Rxb2+ {[%emt 0:00:09]} 110. Rxb2 {[%emt 0:00:03]} axb2 {[%emt 0:00:13]} 111. Kxb2 {[%emt 0:00:03]} 1/2-1/2

[Event "4th Batumi Cup 2018"]
[Site "Batumi"]
[Date "2018.07.08"]
[Round "7"]
[White "Rahul Srivatshav P"]
[Black "Akhvlediani, Irakli"]
[Result "1/2-1/2"]
[ECO "B31"]
[WhiteElo "2397"]
[BlackElo "2264"]
[Annotator "NA"]
[PlyCount "158"]
[EventDate "2018.07.03"]
[EventType "swiss"]
[EventCountry "GEO"]
[SourceTitle "playchess.com"]
[Source "ChessBase"]
[SourceQuality "1"]
[TimeControl "40/5400+30:1800+30"]

1. e4 {[%emt 0:00:00]} c5 {[%emt 0:00:00]} 2. Nf3 {[%emt 0:00:04]} Nc6 {[%emt 0:00:00]} 3. Bb5 {[%emt 0:00:30]} Nf6 {[%emt 0:00:00]} 4. e5 {[%emt 0:02:41]} Nd5 {[%emt 0:00:00]} 5. O-O {[%emt 0:04:56]} Nc7 {[%emt 0:00:03]} 6. Bxc6 {[%emt 0:01:07]} dxc6 {[%emt 0:00:05]} 7. d3 {[%emt 0:02:58]} g6 {[%emt 0:10:38]} 8. h3 {[%emt 0:05:05]} Bg7 {[%emt 0:00:25]} 9. Nc3 {[%emt 0:03:09]} Ne6 {[%emt 0:00:21]} 10. Re1 {[%emt 0:02:17]} O-O {[%emt 0:00:33]} 11. Ne4 {[%emt 0:04:32]} b6 {[%emt 0:01:02]} 12. Neg5 {[%emt 0:04:44]} h6 {[%emt 0:05:30] LiveBook: 11 Games B31: Sicilian: 2...Nc6 3 Bb5 g6} (12... Nd4 $11) (12... Nc7 13. Ne4 h6 14. b3 Ne6 15. Ng3 Nd4 16. Bb2 Be6 17. c4 Qd7 18. Bxd4 cxd4 19. Ne2 c5 20. Nf4 a5 21. Qe2 Ra6 22. a4 {½-½ (22) Ghaem Maghami,E (2557)-Kryvoruchko,Y (2679) Germany 2012}) 13. Nxe6 {[%emt 0:02:10]} Bxe6 {[%emt 0:00:05]} 14. Be3 {[%emt 0:05:17]} Qc7 {[%emt 0:16:10]} 15. c3 {[%emt 0:04:44]} Rfd8 {[%emt 0:06:55]} 16. d4 {[%emt 0:01:51]} cxd4 $146 {[%emt 0:01:17]} ({Predecessor:} 16... Kh7 17. Qe2 cxd4 18. cxd4 Bd5 19. a3 Qb7 20. Rac1 a5 21. Nd2 c5 22. f3 cxd4 23. Bxd4 Be6 24. Bf2 b5 25. Ne4 {½-½ (25) Ramirez,J-Martin Del Campo C,R Sharjah 1985}) 17. cxd4 {[%emt 0:00:19]} Qb7 {[%emt 0:04:00]} 18. Qc1 {[%emt 0:05:32]} Kh7 {[%emt 0:00:50]} 19. Qc3 {[%emt 0:04:42]} Bd5 {[%emt 0:02:17]} 20. Nh4 {[%emt 0:08:04]} e6 {[%emt 0:04:05]} 21. f4 {[%emt 0:04:54]} Bf8 {[%emt 0:06:22]} 22. Bf2 {[%emt 0:03:44]} a5 {[%emt 0:02:06]} 23. a3 {[%emt 0:01:54]} b5 {[%emt 0:05:14]} 24. Qd3 {[%emt 0:02:38]} Be7 {[%emt 0:17:50]} 25. Kh2 {[%emt 0:05:52] [#]} a4 {[%emt 0:06:02]} ({Better is} 25... c5 $1 $19 {[%mdl 512]} 26. dxc5 Bxg2) 26. g4 {[%emt 0:01:51]} c5 {[%emt 0:00:05]} 27. dxc5 {[%emt 0:04:13]} Bc4 {[%emt 0:00:36]} ({Better is} 27... Bc6 $17 28. Qc2 b4) 28. Qf3 {[%emt 0:00:39]} Qxf3 {[%emt 0:02:23]} 29. Nxf3 {[%emt 0:00:02]} Rd3 {[%emt 0:00:41]} 30. Kg2 {[%emt 0:02:14]} (30. Re3 $15) 30... Bd5 {[%emt 0:02:38]} 31. Re3 {[%emt 0:00:02]} Rd2 {[%emt 0:00:28]} 32. Kg3 {[%emt 0:02:30]} Rxb2 {[%emt 0:00:30]} 33. Rc3 {[%emt 0:00:59]} Rb3 {[%emt 0:02:59]} 34. Rxb3 {[%emt 0:08:19]} axb3 {[%emt 0:00:04]} 35. Nd2 {[%emt 0:00:31]} b2 {[%emt 0:02:31]} 36. Rb1 {[%emt 0:00:01]} Rxa3+ {[%emt 0:00:04]} 37. Kh2 {[%emt 0:00:01]} Rc3 {[%emt 0:01:41]} 38. Rxb2 {[%emt 0:00:24]} Bxc5 {[%emt 0:00:06]} (38... g5 $19 39. f5 Bd8) 39. Nb1 {[%emt 0:01:26]} Rc1 {[%emt 0:02:08]} 40. Bxc5 {[%emt 0:00:00]} Rxc5 {[%emt 0:00:00]} 41. Na3 {[%emt 0:01:24]} Bc4 {[%emt 0:08:22]} ({Black should play} 41... h5 $17 42. Rxb5 Rc3) 42. Rc2 {[%emt 0:06:44]} g5 $11 {[%emt 0:05:52]} 43. Nxb5 {[%emt 0:05:03]} Rxb5 {[%emt 0:00:05]} 44. Rxc4 {[%emt 0:00:01]} gxf4 {[%emt 0:00:06]} 45. Rxf4 {[%emt 0:00:01]} Kg6 {[%emt 0:00:09]} 46. Re4 {[%emt 0:01:33]} Kg5 {[%emt 0:00:12]} 47. Re2 {[%emt 0:02:48]} Kh4 {[%emt 0:08:36]} 48. Re3 {[%emt 0:02:14]} Rb2+ {[%emt 0:02:49]} 49. Kg1 {[%emt 0:00:20]} Rd2 {[%emt 0:06:26]} 50. Kh1 {[%emt 0:01:12]} Rf2 {[%emt 0:01:03]} 51. Kg1 {[%emt 0:00:07]} Rd2 {[%emt 0:01:24]} 52. Kh1 {[%emt 0:00:01]} Rf2 {[%emt 0:00:04]} 53. Kg1 {[%emt 0:00:01]} Rc2 {[%emt 0:01:01]} 54. Kh1 {[%emt 0:00:06]} Kg5 {[%emt 0:00:35]} 55. Rf3 {[%emt 0:00:33]} Kg6 {[%emt 0:00:06]} 56. Re3 {[%emt 0:00:25]} h5 {[%emt 0:00:57]} 57. gxh5+ {[%emt 0:01:25]} Kxh5 {[%emt 0:00:03]} 58. Rf3 {[%emt 0:00:07]} Kg6 {[%emt 0:00:04]} 59. Kg1 {[%emt 0:01:49]} Re2 {[%emt 0:00:29]} 60. Rg3+ {[%emt 0:00:04]} Kh7 {[%emt 0:00:39]} 61. Rf3 {[%emt 0:00:07]} Kg7 {[%emt 0:00:22]} 62. Rg3+ {[%emt 0:00:01]} Kh6 {[%emt 0:00:53]} 63. Rf3 {[%emt 0:00:01]} Kg6 {[%emt 0:01:01]} 64. Rg3+ {[%emt 0:00:01]} Kh5 {[%emt 0:00:44]} 65. Rg7 {[%emt 0:01:56]} Kh4 {[%emt 0:00:24]} 66. Rxf7 {[%emt 0:00:04]} Kxh3 {[%emt 0:00:11]} 67. Rg7 {[%emt 0:00:16]} Kh4 {[%emt 0:00:37]} 68. Kf1 {[%emt 0:00:07]} Rxe5 {[%emt 0:00:07]} 69. Kf2 {[%emt 0:00:01]} Rg5 {[%emt 0:01:13]} 70. Rxg5 {[%emt 0:00:01]} Kxg5 {[%emt 0:00:06]} 71. Ke3 {[%emt 0:00:11]} Kf5 {[%emt 0:00:03]} 72. Kf3 {[%emt 0:00:03]} e5 {[%emt 0:00:02]} 73. Ke3 {[%emt 0:00:03]} e4 {[%emt 0:00:01]} 74. Ke2 {[%emt 0:00:08]} Kf4 {[%emt 0:00:01]} 75. Kf2 {[%emt 0:00:01]} e3+ {[%emt 0:00:04]} 76. Ke2 {[%emt 0:00:05]} Ke4 {[%emt 0:00:02]} 77. Ke1 {[%emt 0:00:06]} Kf3 {[%emt 0:00:03]} 78. Kf1 {[%emt 0:00:04]} e2+ {[%emt 0:00:02]} 79. Ke1 {[%emt 0:00:01]} Ke3 {[%emt 0:00:04]} 1/2-1/2

[Event "4th Batumi Cup 2018"]
[Site "Batumi"]
[Date "2018.07.08"]
[Round "7"]
[White "Bashirov, Teymur"]
[Black "Martynyuk, Elizaveta"]
[Result "1-0"]
[ECO "B20"]
[WhiteElo "2379"]
[BlackElo "2182"]
[Annotator "NA"]
[PlyCount "94"]
[EventDate "2018.07.03"]
[EventType "swiss"]
[EventCountry "GEO"]
[SourceTitle "playchess.com"]
[Source "ChessBase"]
[SourceQuality "1"]
[TimeControl "40/5400+30:1800+30"]

1. e4 {[%emt 0:00:00]} c5 {[%emt 0:01:49]} 2. g3 {[%emt 0:00:12]} Nc6 {[%emt 0:00:06]} 3. Bg2 {[%emt 0:00:06]} g6 {[%emt 0:00:10]} 4. Ne2 {[%emt 0:00:05]} Bg7 {[%emt 0:00:06]} 5. O-O {[%emt 0:00:09]} d6 {[%emt 0:00:14]} 6. c3 {[%emt 0:00:07]} Be6 {[%emt 0:04:15] B20: Sicilian: Unusual White 2nd moves} (6... e5 7. Na3 Nge7 8. d4 cxd4 9. cxd4 Nxd4 10. Nxd4 exd4 11. Bf4 O-O 12. Nb5 Qb6 13. Bxd6 Qxb5 14. Bxe7 Re8 {0-1 (26) Zubarev,A (2597)-Vachier Lagrave,M (2699) Le Port Marly 2012}) 7. Nf4 {[%emt 0:11:37]} Bc4 $146 {[%emt 0:03:41]} ({Predecessor:} 7... Qc8 8. Nxe6 Qxe6 9. f4 Qd7 10. d3 Nf6 11. d4 O-O-O 12. d5 Nb8 13. c4 h5 14. h3 {1-0 (45) Reszka,M-Holusova,T Frydek Mistek 1997}) 8. d3 {[%emt 0:00:28]} Ba6 {[%emt 0:00:15]} 9. a4 {[%emt 0:01:42]} e6 {[%emt 0:02:51]} 10. Na3 {[%emt 0:05:10]} Nge7 {[%emt 0:20:46]} 11. Rb1 {[%emt 0:02:27]} b6 {[%emt 0:02:23]} 12. b4 {[%emt 0:02:19]} cxb4 {[%emt 0:00:15]} 13. cxb4 {[%emt 0:00:02]} Bb7 {[%emt 0:00:09]} 14. b5 {[%emt 0:08:04]} Na5 {[%emt 0:02:30]} 15. Nc4 {[%emt 0:02:34]} Nxc4 {[%emt 0:00:35]} 16. dxc4 {[%emt 0:01:07]} O-O {[%emt 0:00:16]} 17. Qd3 {[%emt 0:00:48]} Qc7 {[%emt 0:00:47]} 18. Ba3 {[%emt 0:04:18]} Rfd8 {[%emt 0:07:19]} 19. Rfd1 {[%emt 0:01:23]} Nc8 {[%emt 0:05:20]} 20. Rbc1 {[%emt 0:01:48]} Rd7 {[%emt 0:00:52]} 21. a5 {[%emt 0:08:39]} Rb8 {[%emt 0:00:29]} 22. a6 {[%emt 0:13:01]} Ba8 {[%emt 0:00:03]} 23. Rc2 {[%emt 0:02:40]} Qd8 {[%emt 0:01:54]} 24. Bh3 {[%emt 0:04:50]} Qf6 $2 {[%emt 0:00:49]} (24... Qe8 25. f3 Qe7) 25. Bb2 {[%emt 0:04:04]} Qe7 {[%emt 0:00:26]} 26. e5 {[%emt 0:04:37]} Bh6 {[%emt 0:03:01]} 27. Ba3 {[%emt 0:02:38]} Bxf4 {[%emt 0:02:29]} 28. gxf4 {[%emt 0:00:47]} Qh4 {[%emt 0:00:08]} 29. exd6 {[%emt 0:03:47]} Qxf4 {[%emt 0:01:59]} (29... Nxd6 $142 30. Bxd6 Rbd8) 30. Rc3 {[%emt 0:03:13]} h5 {[%emt 0:09:00]} 31. Qg3 {[%emt 0:02:43]} Qf6 {[%emt 0:01:37]} 32. Rcd3 {[%emt 0:00:55]} Be4 {[%emt 0:00:27]} 33. R3d2 {[%emt 0:00:55]} Bf3 {[%emt 0:02:13]} 34. Bb2 {[%emt 0:00:46]} h4 {[%emt 0:00:07]} 35. Bxf6 {[%emt 0:03:41]} hxg3 {[%emt 0:00:28]} 36. Re1 {[%emt 0:03:17]} gxh2+ $2 {[%emt 0:00:07]} (36... Rxd6 {is a better defense.} 37. Ra2 g5) 37. Kxh2 {[%emt 0:00:01]} Rxd6 {[%emt 0:02:20]} 38. Rc2 {[%emt 0:00:11]} Rd3 {[%emt 0:03:14]} 39. Bf1 {[%emt 0:00:37]} Rd7 {[%emt 0:00:39]} 40. Rc3 {[%emt 0:00:43]} Bh5 {[%emt 0:00:00]} 41. Be2 {[%emt 0:01:07]} Bxe2 {[%emt 0:01:05]} 42. Rxe2 {[%emt 0:00:01]} Ne7 {[%emt 0:00:13]} 43. Rh3 {[%emt 0:00:33]} Kf8 {[%emt 0:00:15]} 44. Rh8+ {[%emt 0:01:35]} Ng8 {[%emt 0:00:04]} 45. Re3 {[%emt 0:00:30]} Rd2 {[%emt 0:00:04]} 46. Kg2 {[%emt 0:00:46]} Rc8 {[%emt 0:00:33]} 47. Rxg8+ {[%emt 0:00:38]} Kxg8 1-0

[Event "4th Batumi Cup 2018"]
[Site "Batumi"]
[Date "2018.07.08"]
[Round "7"]
[White "Martynov, Roman"]
[Black "Eynullayev, Altay"]
[Result "1-0"]
[ECO "A61"]
[WhiteElo "2366"]
[BlackElo "2134"]
[Annotator "NA"]
[PlyCount "89"]
[EventDate "2018.07.03"]
[EventType "swiss"]
[EventCountry "GEO"]
[SourceTitle "playchess.com"]
[Source "ChessBase"]
[SourceQuality "1"]
[TimeControl "40/5400+30:1800+30"]

1. d4 {[%emt 0:00:00]} Nf6 {[%emt 0:00:00]} 2. Nf3 {[%emt 0:00:30]} e6 {[%emt 0:00:00]} 3. c4 {[%emt 0:00:59]} c5 {[%emt 0:00:00]} 4. d5 {[%emt 0:00:45]} exd5 {[%emt 0:00:01]} 5. cxd5 {[%emt 0:00:20]} d6 {[%emt 0:00:03]} 6. Nc3 {[%emt 0:00:44]} g6 {[%emt 0:00:24]} 7. Bf4 {[%emt 0:00:55]} a6 {[%emt 0:00:50]} 8. a4 {[%emt 0:00:25]} Bg7 {[%emt 0:00:05]} 9. h3 {[%emt 0:00:56] A61: Modern Benoni: Nf3 without early e4} Qe7 {[%emt 0:00:13]} 10. e3 {[%emt 0:19:48]} O-O {[%emt 0:02:51]} 11. Be2 {[%emt 0:08:41]} Nbd7 {[%emt 0:00:14]} 12. O-O {[%emt 0:00:29]} Ne8 {[%emt 0:01:36]} 13. Re1 {[%emt 0:02:26]} Rb8 $146 {[%emt 0:01:53] LiveBook: 44 Partien} ({Predecessor:} 13... Ne5 14. Nd2 f5 15. Bh2 Rb8 16. Ra3 Bd7 {1-0 (36) Banusz,T (2552)-Cebalo,M (2478) Trieste 2011}) 14. Nd2 {[%emt 0:09:07]} Ne5 {[%emt 0:01:03]} 15. Ra3 {[%emt 0:06:30]} Nc7 {[%emt 0:06:47]} 16. Rb3 {[%emt 0:05:01]} Bd7 {[%emt 0:04:26]} 17. a5 {[%emt 0:00:30]} f5 {[%emt 0:02:00]} 18. Bh2 {[%emt 0:00:32]} Kh8 {[%emt 0:06:43]} 19. f4 {[%emt 0:03:10]} Nf7 {[%emt 0:02:26]} 20. Bc4 {[%emt 0:02:23]} Rfe8 {[%emt 0:05:28]} 21. Bg3 {[%emt 0:00:20]} Qd8 {[%emt 0:09:18]} 22. Qb1 {[%emt 0:07:59]} Na8 {[%emt 0:03:31]} 23. Qa1 {[%emt 0:04:33]} Nc7 {[%emt 0:07:44]} 24. Bd3 {[%emt 0:02:39]} Rf8 {[%emt 0:13:53]} 25. Nf3 {[%emt 0:04:24]} Qc8 {[%emt 0:06:55]} 26. Bc4 {[%emt 0:01:26]} Ne8 {[%emt 0:02:01]} 27. e4 {[%emt 0:02:49]} fxe4 {[%emt 0:01:19]} 28. Nxe4 {[%emt 0:00:09]} Nh6 {[%emt 0:03:24]} 29. Nh4 {[%emt 0:03:55]} Qd8 {[%emt 0:05:00]} 30. Rb6 {[%emt 0:01:42]} Nf5 {[%emt 0:06:42]} 31. Nxf5 {[%emt 0:00:19]} Bxf5 {[%emt 0:00:04]} 32. Ng5 {[%emt 0:00:27]} Nf6 {[%emt 0:00:35]} 33. Ne6 {[%emt 0:05:15]} Bxe6 {[%emt 0:00:53]} 34. Rxe6 {[%emt 0:01:30]} Nh5 {[%emt 0:01:35]} 35. Rexd6 {[%emt 0:00:22]} Qe7 {[%emt 0:01:35]} (35... Qc7 $11 {keeps the balance.} 36. Qe1 Nxg3 37. Qxg3 Bxb2) 36. Re6 {[%emt 0:02:19]} Qf7 {[%emt 0:00:09]} 37. Bh2 {[%emt 0:00:55]} Nxf4 {[%emt 0:00:17]} 38. Qf1 {[%emt 0:01:28]} Rbd8 {[%emt 0:02:33] [#]} 39. Bxf4 {[%emt 0:01:16]} ({Better is} 39. Re4 $1 $16 Bd4+ 40. Kh1 Nxd5 41. Qe2) 39... Qxf4 {[%emt 0:00:02]} 40. Qxf4 {[%emt 0:00:00]} Rxf4 {[%emt 0:00:00]} 41. b3 {[%emt 0:01:02]} Bd4+ {[%emt 0:01:08]} 42. Kh1 {[%emt 0:02:39]} Rf7 {[%emt 0:01:19]} 43. d6 {[%emt 0:04:24]} Bc3 {[%emt 0:04:38]} 44. Re7 {[%emt 0:06:47]} Bxa5 $18 {[%emt 0:30:22]} (44... Rxe7 {is tougher.} 45. dxe7 Re8) 45. Rbxb7 {[%emt 0:00:57]} 1-0